bitfinex-derivatives/quotes_SOLF0:USTF0_20220110
["timestamp","ask_amount","ask_price","bid_price","bid_amount"]
[1641776535781,33.34024383,140.73,140.61,4.0]
[1641776536081,27.66479,140.72,140.63,27.66479]
[1641776537283,4.0,140.7,140.63,27.66479]
[1641776537484,27.66479,140.72,140.63,27.66479]
[1641776537485,27.66479,140.72,140.63,31.66479]
[1641776537685,27.66479,140.72,140.64,1.776]
[1641776537884,27.66479,140.72,140.64,5.776]
[1641776538083,27.66479,140.72,140.66,27.66479]
[1641776538988,31.66479,140.72,140.66,27.66479]
[1641776539188,4.0,140.71,140.64,1.776]
[1641776539391,4.0,140.71,140.63,27.66479]
[1641776539589,31.66479,140.72,140.63,27.66479]
[1641776539991,4.0,140.7,140.63,27.66479]
[1641776540193,31.66479,140.72,140.63,27.66479]
[1641776540692,27.66479,140.72,140.63,27.66479]
[1641776541291,27.66479,140.72,140.64,5.776]
[1641776541493,4.0,140.77,140.66,7.10504814]
[1641776541693,9.68282867,140.78,140.66,7.10504814]
[1641776542192,9.68282867,140.78,140.69,27.66479]
[1641776542393,31.66479,140.79,140.69,27.66479]
[1641776543295,4.0,140.77,140.69,27.66479]
[1641776543494,4.0,140.77,140.66,49.04624814]
[1641776544095,4.0,140.77,140.66,76.71103814]
[1641776544794,31.66479,140.79,140.66,76.71103814]
[1641776544995,37.34722849,140.79,140.66,76.71103814]
[1641776545397,4.0,140.78,140.66,76.71103814]
[1641776545798,4.0,140.77,140.66,76.71103814]
[1641776546200,33.34722849,140.79,140.7,27.66479]
[1641776547402,37.34722849,140.79,140.7,27.66479]
[1641776547603,33.34722849,140.79,140.7,27.66479]
[1641776547803,5.68243849,140.79,140.7,27.66479]
[1641776548204,5.68243849,140.79,140.7,55.32958]
[1641776549504,9.68243849,140.79,140.7,55.32958]
[1641776549709,5.68243849,140.79,140.7,55.32958]
[1641776550407,5.68243849,140.79,140.73,27.66479]
[1641776551009,5.68243849,140.79,140.7,27.66479]
[1641776552010,5.68243849,140.79,140.7,31.66479]
[1641776552210,33.34623522,140.81,140.7,37.3503898]
[1641776552415,33.34623522,140.81,140.74,27.66479]
[1641776552612,5.68144522,140.81,140.74,27.66479]
[1641776552814,2.05591535,140.78,140.74,27.66479]
[1641776556817,5.68144522,140.81,140.74,27.66479]
[1641776557417,2.05768235,140.77,140.74,27.66479]
[1641776561324,5.68144522,140.81,140.74,27.66479]
[1641776561623,2.05791752,140.76,140.74,27.66479]
[1641776565532,15.01503272,140.8,140.74,27.66479]
[1641776565732,2.52540603,140.75,140.74,27.66479]
[1641776566134,6.03e-06,140.75,140.74,27.66479]
[1641776566733,15.01503272,140.77,140.74,27.66479]
[1641776567035,3.875e-05,140.77,140.74,33.34899259]
[1641776567234,3.875e-05,140.77,140.74,27.66479]
[1641776567434,41.64071255,140.8,140.74,27.66479]
[1641776567635,2.05809968,140.8,140.74,27.66479]
[1641776569237,2.05809968,140.8,140.72,8.87602052]
[1641776569938,2.05818356,140.79,140.72,8.87602052]
[1641776570138,2.05818356,140.79,140.72,7.10202052]
[1641776570339,2.05818356,140.79,140.74,4.03414632]
[1641776572645,4.0,140.77,140.74,4.03414632]
[1641776572846,27.66479,140.77,140.74,4.03414632]
[1641776573548,31.66479,140.77,140.74,4.03414632]
[1641776573750,4.0,140.75,140.67,1.776]
[1641776574048,4.0,140.72,140.64,1.776]
[1641776574248,4.0,140.71,140.63,28.42019254]
[1641776574649,4.0,140.7,140.63,28.42019254]
[1641776574850,27.66479,140.69,140.63,28.42019254]
[1641776576752,67.24740287,140.72,140.63,28.42019254]
[1641776576953,27.66479,140.72,140.63,28.42019254]
[1641776577954,27.66479,140.72,140.63,30.19619254]
[1641776578253,27.66479,140.72,140.65,7.10580544]
[1641776578855,27.66479,140.72,140.65,34.77059544]
[1641776579054,10.09063655,140.74,140.65,34.77059544]
[1641776579255,2.86648247,140.68,140.65,34.77059544]
[1641776579755,10.09063655,140.74,140.65,34.77059544]
[1641776579955,10.09063655,140.74,140.66,1.776]
[1641776580356,10.09063655,140.74,140.68,11.10429099]
[1641776580556,10.09063655,140.77,140.71,7.10277719]
[1641776580756,10.09063655,140.77,140.69,8.87953401]
[1641776580957,10.09063655,140.77,140.74,27.66479]
[1641776581362,4.0,140.75,140.66,41.9677]
[1641776581556,4.0,140.73,140.66,41.9677]
[1641776581756,4.0,140.73,140.64,4.03669814]
[1641776582856,27.66479,140.72,140.65,27.66479]
[1641776583355,31.66479,140.72,140.65,27.66479]
[1641776583757,2.86557155,140.67,140.66,4.03550137]
[1641776587462,2.86557155,140.67,140.65,27.66479]
[1641776587662,27.66479,140.72,140.65,27.66479]
[1641776587863,2.695717,140.67,140.65,27.66479]
[1641776588463,2.695717,140.67,140.66,4.03640564]
[1641776589964,1.7e-05,140.67,140.66,4.03640564]
[1641776591468,1.7e-05,140.67,140.66,11.14120138]
[1641776591868,10.0708639,140.75,140.66,16.82835018]
[1641776592168,10.0708639,140.75,140.67,25.776]
[1641776592967,37.7356539,140.78,140.67,25.776]
[1641776593168,37.7356539,140.78,140.69,27.66479]
[1641776593769,4.0,140.77,140.69,27.66479]
[1641776594473,14.0708639,140.77,140.67,1.776]
[1641776594670,14.0708639,140.77,140.66,62.53501069]
[1641776595070,27.66479,140.75,140.68,27.66479]
[1641776595772,39.58261287,140.76,140.68,27.66479]
[1641776595970,10.0708639,140.76,140.68,27.66479]
[1641776596671,10.0708639,140.77,140.68,27.66479]
[1641776596870,10.0708639,140.77,140.69,1.776]
[1641776597669,15.06099992,140.75,140.69,1.776]
[1641776598571,15.06099992,140.74,140.69,1.776]
[1641776601574,15.06099992,140.74,140.7,4.03550236]
[1641776602175,15.06099992,140.73,140.7,4.03550236]
[1641776605775,15.06099992,140.73,140.69,1.776]
[1641776606776,15.06099992,140.74,140.7,24.0]
[1641776606977,15.06099992,140.74,140.71,1.776]
[1641776607177,15.06099992,140.74,140.71,8.87877719]
[1641776607378,1.5991312,140.72,140.71,8.87877719]
[1641776607577,17.58983787,140.77,140.72,4.08575085]
[1641776607778,17.58983787,140.77,140.73,1.776]
[1641776607979,17.58983787,140.77,140.72,1.776]
[1641776608580,15.06099992,140.78,140.72,1.776]
[1641776608980,15.06099992,140.78,140.73,7.10151617]
[1641776609381,15.06099992,140.78,140.74,27.66479]
[1641776610382,2.52883795,140.79,140.74,27.66479]
[1641776611185,17.58983787,140.79,140.74,27.66479]
[1641776612590,15.06099992,140.79,140.74,27.66479]
[1641776612988,1.43756142,140.77,140.74,27.66479]
[1641776614889,15.06099992,140.81,140.76,5.68324534]
[1641776615089,15.06099992,140.81,140.77,1.774]
[1641776615289,15.06099992,140.81,140.79,5.68207748]
[1641776615690,15.06099992,140.81,140.8,55.32958]
[1641776616289,39.58261287,140.84,140.8,55.32958]
[1641776616489,39.58261287,140.84,140.8,57.10358]
[1641776617190,49.6484204,140.87,140.8,57.10358]
[1641776617791,39.58261287,140.87,140.83,27.66479]
[1641776618092,2.51748715,140.87,140.83,27.66479]
[1641776618495,2.51748715,140.87,140.8,29.43879]
[1641776618496,6.51748715,140.87,140.8,29.43879]
[1641776618792,4.0,140.87,140.8,27.66479]
[1641776618994,4.0,140.88,140.77,4.03321451]
[1641776619293,4.0,140.87,140.78,1.774]
[1641776619495,22.2470253,140.89,140.78,1.774]
[1641776619698,2.51748715,140.87,140.81,27.66479]
[1641776620297,2.51748715,140.87,140.81,34.76252582]
[1641776620896,2.51748715,140.88,140.81,34.76252582]
[1641776621300,6.51748715,140.88,140.8,1.774]
[1641776621501,6.51748715,140.88,140.79,27.66479]
[1641776621701,2.51748715,140.88,140.79,27.66479]
[1641776621900,2.51748715,140.87,140.79,27.66479]
[1641776622202,2.51748715,140.87,140.79,47.66479]
[1641776622400,2.51748715,140.87,140.81,7.09773582]
[1641776623203,2.51748715,140.89,140.81,7.09773582]
[1641776623602,2.51748715,140.89,140.84,27.66479]
[1641776624204,12.56864477,140.91,140.84,27.66479]
[1641776624807,4.0,140.89,140.83,1.774]
[1641776625004,4.0,140.89,140.81,7.09773582]
[1641776625005,2.51748715,140.91,140.81,7.09773582]
[1641776625603,2.51748715,140.91,140.82,1.774]
[1641776625804,6.51748715,140.91,140.83,27.66479]
[1641776626004,16.56864477,140.91,140.83,27.66479]
[1641776627006,2.51748715,140.9,140.83,27.66479]
[1641776628808,16.56864477,140.91,140.83,27.66479]
[1641776629609,6.51748715,140.9,140.83,27.66479]
[1641776630209,2.51748715,140.89,140.83,27.66479]
[1641776631709,2.51748715,140.9,140.83,27.66479]
[1641776632712,12.56864477,140.91,140.83,34.76151841]
[1641776632911,0.80642752,140.89,140.84,1.774]
[1641776633511,2.51748715,140.88,140.84,1.774]
[1641776637015,3.32385174,140.88,140.84,1.774]
[1641776637615,3.32385174,140.88,140.84,7.45412925]
[1641776637816,3.32385174,140.88,140.86,27.66479]
[1641776637817,0.80636459,140.88,140.86,27.66479]
[1641776639617,10.05115762,140.91,140.87,29.67876163]
[1641776639817,10.05115762,140.91,140.89,27.66479]
[1641776640019,10.05115762,140.91,140.88,5.774]
[1641776640819,82.87311839,140.96,140.88,5.774]
[1641776641920,82.87311839,140.96,140.89,27.66479]
[1641776642121,12.56946314,140.95,140.89,27.66479]
[1641776643122,52.15207601,140.95,140.89,27.66479]
[1641776644322,4.0,140.94,140.86,34.75975612]
[1641776644523,4.0,140.92,140.83,6.8162814]
[1641776644823,4.0,140.91,140.83,6.8162814]
[1641776645223,4.0,140.91,140.82,8.87098023]
[1641776645425,4.0,140.91,140.82,7.09698023]
[1641776645922,30.18309552,140.9,140.83,27.66479]
[1641776646724,2.51830552,140.9,140.83,27.66479]
[1641776646926,15.07067255,140.87,140.83,27.66479]
[1641776647127,15.07067255,140.87,140.84,5.68008633]
[1641776647327,15.07067255,140.87,140.85,1.774]
[1641776647829,15.07067255,140.91,140.86,27.66479]
[1641776648527,15.07067255,140.9,140.86,27.66479]
[1641776648826,15.07067255,140.9,140.86,44.43909916]
[1641776649027,15.07067255,140.9,140.87,1.774]
[1641776649427,15.07067255,140.92,140.87,25.774]
[1641776649826,15.07067255,140.92,140.9,27.66479]
[1641776650732,15.07067255,140.93,140.87,21.774]
[1641776652030,15.07067255,140.93,140.89,27.66479]
[1641776654032,15.07067255,140.94,140.89,27.66479]
[1641776655632,15.07067255,140.94,140.89,29.43879]
[1641776655831,15.07067255,140.94,140.92,27.66479]
[1641776656036,15.07067255,140.94,140.92,31.66479]
[1641776656234,15.07067255,140.94,140.92,38.75698858]
[1641776656431,15.07067255,140.94,140.93,1.772]
[1641776656634,15.07067255,140.94,140.93,25.772]
[1641776656932,15.07067255,140.98,140.93,25.772]
[1641776657133,15.07067255,140.98,140.93,21.772]
[1641776657331,15.07067255,140.98,140.93,1.772]
[1641776657932,15.07067255,140.98,140.96,27.66479]
[1641776658334,15.07067255,141.01,140.93,1.772]
[1641776658536,15.07067255,141.01,140.92,42.20580109]
[1641776659035,19.07067255,141.01,140.92,42.20580109]
[1641776659237,4.0,140.98,140.92,42.20580109]
[1641776659435,17.58897807,141.01,140.92,33.34157881]
[1641776659836,17.58897807,141.01,140.95,27.66479]
[1641776661040,2.51830552,141.01,140.95,27.66479]
[1641776664042,2.51830552,141.01,140.96,4.02791888]
[1641776664245,6.51830552,141.01,140.96,4.02791888]
[1641776664644,2.51830552,141.01,140.96,4.02791888]
[1641776664846,2.51830552,141.0,140.96,4.02791888]
[1641776666548,30.18309552,141.01,140.96,4.02791888]
[1641776666846,2.51830552,141.01,140.96,4.02791888]
[1641776667346,2.51830552,141.0,140.97,1.772]
[1641776667947,2.51830552,141.0,140.97,29.43679]
[1641776668147,2.51830552,141.01,140.97,29.43679]
[1641776668947,2.51830552,141.02,140.97,29.43679]
[1641776670648,2.51830552,141.03,140.97,29.43679]
[1641776671252,17.58897807,141.03,140.97,29.43679]
[1641776671455,17.58897807,141.03,140.97,33.4644618]
[1641776671851,0.80553904,140.99,140.97,33.4644618]
[1641776672452,2.51830552,141.02,140.97,33.4644618]
[1641776672652,15.07067255,141.03,140.98,5.67419947]
[1641776672852,15.07067255,141.03,140.99,1.772]
[1641776673456,43.3084,141.05,140.99,1.772]
[1641776673655,15.07067255,141.08,140.99,1.772]
[1641776673858,15.07067255,141.08,141.02,27.66479]
[1641776674258,2.50791851,141.05,141.02,27.66479]
[1641776675058,15.07067255,141.08,141.02,27.66479]
[1641776675960,2.50725676,141.05,141.02,27.66479]
[1641776676561,2.50725676,141.05,141.03,20.0]
[1641776676762,2.50725676,141.05,141.03,21.772]
[1641776676962,2.50725676,141.05,141.03,1.772]
[1641776677763,2.50725676,141.05,141.02,27.66479]
[1641776678164,14.01241698,141.08,141.02,27.66479]
[1641776678165,4.0,141.08,141.02,27.66479]
[1641776678365,42.73546255,141.09,141.02,27.66479]
[1641776679168,15.07067255,141.06,141.02,27.66479]
[1641776684172,15.07067255,141.05,141.02,27.66479]
[1641776685177,15.07067255,141.06,141.02,27.66479]
[1641776685375,4.0,141.03,140.99,1.772]
[1641776685674,4.0,141.02,140.97,34.7542232]
[1641776685875,4.0,141.04,140.97,7.0894332]
[1641776686077,2.51262349,141.02,140.97,7.0894332]
[1641776687079,15.07067255,141.02,140.97,7.0894332]
[1641776688081,15.07067255,141.02,140.97,34.7542232]
[1641776690083,15.07067255,141.02,140.98,4.02749716]
[1641776691382,0.80551323,141.01,140.98,4.02749716]
[1641776691883,15.87618578,141.01,140.98,4.02749716]
[1641776692883,2.51262349,141.0,140.98,4.02749716]
[1641776693486,6.51262349,141.0,140.98,4.02749716]
[1641776693787,4.0,140.99,140.98,9.716e-05]
[1641776693987,4.0,140.99,140.91,43.9377]
[1641776694289,27.66479,140.96,140.91,43.9377]
[1641776694486,27.66479,140.96,140.9,15.07067255]
[1641776694687,4.0,140.98,140.89,34.75824629]
[1641776695087,4.0,140.98,140.89,79.34324629]
[1641776695288,17.5750644,140.97,140.9,2.49787719]
[1641776696290,15.06244091,140.97,140.9,2.49787719]
[1641776696589,15.06244091,140.97,140.9,4.26987719]
[1641776697087,15.06244091,140.97,140.9,1.772]
[1641776698592,15.06244091,140.97,140.9,7.44953955]
[1641776698791,17.5750644,140.98,140.9,7.44953955]
[1641776698993,17.5750644,140.98,140.9,11.47833927]
[1641776699895,0.80578575,140.96,140.9,11.47833927]
[1641776703100,0.80578575,140.96,140.9,7.44953955]
[1641776703301,0.80578575,140.96,140.91,4.02856578]
[1641776703905,19.06244091,140.99,140.91,4.02856578]
[1641776704199,1.00824985,140.95,140.91,4.02856578]
[1641776704400,1.00824985,140.95,140.93,27.66479]
[1641776708003,60.46974091,141.0,140.93,27.66479]
[1641776708304,27.66479,140.99,140.93,27.66479]
[1641776708504,1.41019874,140.98,140.93,27.66479]
[1641776709404,2.51978603,140.97,140.93,27.66479]
[1641776710005,4.0,140.95,140.91,4.028513]
[1641776710207,4.0,140.94,140.91,4.028513]
[1641776710408,31.66479,140.94,140.91,4.028513]
[1641776711206,4.0,140.92,140.91,4.028513]
[1641776711607,4.0,140.92,140.85,69.20549]
[1641776711806,4.0,140.91,140.85,27.66479]
[1641776712206,4.0,140.86,140.84,15.07067255]
[1641776712406,31.66479,140.85,140.82,15.07067255]
[1641776713506,27.66479,140.85,140.82,15.07067255]
[1641776713706,27.66479,140.85,140.79,2.49657213]
[1641776714607,15.06244091,140.89,140.79,4.27057213]
[1641776714808,15.06244091,140.89,140.79,28.27057213]
[1641776715008,15.06244091,140.89,140.8,7.09823964]
[1641776715308,15.06244091,140.89,140.81,1.774]
[1641776715509,2.52226327,140.89,140.81,1.774]
[1641776716209,19.06244091,140.91,140.81,1.774]
[1641776716409,4.0,140.89,140.82,45.23203468]
[1641776716608,27.66479,140.9,140.82,45.23203468]
[1641776716810,27.66479,140.9,140.83,1.774]
[1641776717512,1.41080629,140.84,140.83,4.27057213]
[1641776718812,1.41080629,140.84,140.83,29.34712274]
[1641776720012,5.41080629,140.84,140.83,29.34712274]
[1641776720212,5.41080629,140.84,140.83,27.57312274]
[1641776720512,1.41080629,140.84,140.83,2.49657213]
[1641776721314,1.41080629,140.84,140.81,19.34124468]
[1641776721513,5.40966334,140.89,140.81,19.34124468]
[1641776722114,1.40966334,140.89,140.82,2.49657213]
[1641776722514,1.40966334,140.89,140.84,27.66479]
[1641776724113,1.40966334,140.89,140.85,2.49657213]
[1641776724314,4.0,140.88,140.85,2.49657213]
[1641776724515,31.66479,140.86,140.85,2.49657213]
[1641776724715,31.66479,140.86,140.83,25.06685179]
[1641776724915,4.0,140.85,140.83,15.07067255]
[1641776725115,4.0,140.85,140.8,15.07067255]
[1641776725515,5.67918661,140.87,140.8,15.07067255]
[1641776725716,1.40969832,140.88,140.8,15.07067255]
[1641776725917,1.40969832,140.88,140.81,7.09748394]
[1641776726117,1.40969832,140.88,140.81,8.87148394]
[1641776726316,1.40969832,140.88,140.81,7.09748394]
[1641776726516,1.40969832,140.88,140.84,27.66479]
[1641776727317,1.40969832,140.88,140.85,4.02986355]
[1641776730118,27.66479,140.91,140.85,4.02986355]
[1641776730517,34.47669792,140.93,140.85,4.02986355]
[1641776730717,1.40923096,140.87,140.85,4.02986355]
[1641776731518,1.40923096,140.87,140.84,55.32958]
[1641776731721,1.40923096,140.87,140.85,4.03008289]
[1641776734725,27.66479,140.93,140.85,4.03008289]
[1641776735626,27.66479,140.93,140.86,4.02963519]
[1641776735825,42.6597,140.95,140.86,11.12485301]
[1641776736027,15.06244091,140.96,140.86,16.80421403]
[1641776736227,15.06244091,140.95,140.87,1.774]
[1641776736428,15.06244091,140.95,140.89,27.66479]
[1641776736625,15.06244091,140.95,140.89,29.43879]
[1641776737226,58.94984091,140.98,140.9,7.09295315]
[1641776737427,15.06244091,140.98,140.9,7.09295315]
[1641776737626,15.06244091,140.98,140.9,36.77035128]
[1641776737825,15.06244091,140.98,140.93,7.09144417]
[1641776738029,39.58261287,141.01,140.94,1.772]
[1641776738427,39.58261287,141.01,140.98,27.66479]
[1641776738627,43.8014,141.04,140.98,27.66479]
[1641776739427,27.66479,141.06,140.98,27.66479]
[1641776740230,31.66479,141.08,140.99,1.772]
[1641776740430,31.66479,141.08,141.01,27.66479]
[1641776744642,4.0,141.07,141.01,27.66479]
[1641776744838,31.66479,141.08,141.01,27.66479]
[1641776745642,4.0,141.03,141.01,27.66479]
[1641776746840,4.0,141.02,141.01,27.66479]
[1641776747240,4.0,141.02,140.99,4.0257674]
[1641776747442,4.0,141.0,140.99,4.0257674]
[1641776748642,27.66479,141.0,140.99,4.0257674]
[1641776748942,27.66479,141.0,140.91,114.48159]
[1641776749145,27.66479,141.0,140.91,71.72319]
[1641776749543,27.66479,141.0,140.93,7.09169562]
[1641776749946,27.66479,141.01,140.94,1.772]
[1641776750144,4.0,141.08,140.96,7.08993584]
[1641776750346,4.0,141.08,140.97,21.772]
[1641776750545,27.66479,141.07,141.0,27.66479]
[1641776750745,31.66479,141.07,141.0,27.66479]
[1641776751146,4.0,141.06,140.99,1.772]
[1641776751349,4.0,141.06,140.97,43.3173]
[1641776751649,4.0,141.05,140.97,43.3173]
[1641776752850,4.0,141.05,140.97,41.5453]
[1641776753250,4.0,141.04,140.97,41.5453]
[1641776753450,4.0,141.06,140.97,41.5453]
[1641776753651,31.66479,141.07,140.97,41.5453]
[1641776753852,4.0,141.06,140.97,41.5453]
[1641776754052,27.66479,141.07,140.97,41.5453]
[1641776754255,27.66479,141.07,140.98,1.772]
[1641776754953,1.40585029,141.06,140.98,1.772]
[1641776757657,4.0,141.04,140.98,1.772]
[1641776757858,4.0,141.04,140.97,41.5453]
[1641776758057,5.40585029,141.06,140.97,41.5453]
[1641776758258,4.0,141.05,140.97,41.5453]
[1641776758457,4.0,141.04,140.97,41.5453]
[1641776758658,31.66479,141.04,140.97,41.5453]
[1641776759058,27.66479,141.04,140.97,65.5453]
[1641776759258,4.0,141.08,140.98,5.67452312]
[1641776759460,1.40649085,141.05,140.99,1.772]
[1641776760558,1.40649085,141.05,140.99,29.43679]
[1641776761364,1.40649085,141.05,141.01,9.67316968]
[1641776761559,27.66479,141.1,141.02,1.772]
[1641776761759,27.66479,141.1,141.03,5.67246722]
[1641776761964,27.66479,141.1,141.04,1.772]
[1641776762160,31.66479,141.1,141.04,1.772]
[1641776762360,4.0,141.08,141.01,1.772]
[1641776762560,55.32958,141.1,141.05,24.0]
[1641776762762,40.2095,141.13,141.06,1.772]
[1641776762960,43.58261287,141.15,141.06,1.772]
[1641776763361,50.08261287,141.15,141.06,1.772]
[1641776763562,4.0,141.14,141.06,1.772]
[1641776763761,14.5,141.15,141.06,1.772]
[1641776763963,4.0,141.17,141.06,5.772]
[1641776764162,10.5,141.17,141.08,24.0]
[1641776764362,39.58261287,141.18,141.09,1.77]
[1641776764563,67.24740287,141.18,141.11,27.66479]
[1641776765263,2.50838704,141.17,141.11,29.43479]
[1641776765663,2.50838704,141.17,141.11,53.43479]
[1641776766564,2.50838704,141.17,141.13,4.0]
[1641776766763,2.50838704,141.17,141.12,4.0]
[1641776766965,2.50838704,141.17,141.13,1.77]
[1641776767365,2.50838704,141.17,141.13,5.77]
[1641776767567,2.50838704,141.17,141.13,4.0]
[1641776767766,27.66479,141.18,141.13,9.6683405]
[1641776767967,27.66479,141.18,141.14,1.77]
[1641776768368,27.66479,141.18,141.14,25.77]
[1641776768570,27.66479,141.18,141.14,21.77]
[1641776768768,27.66479,141.18,141.14,32.85089927]
[1641776769368,27.66479,141.18,141.14,28.85089927]
[1641776771371,27.66479,141.18,141.15,4.0]
[1641776772572,27.66479,141.18,141.16,4.0]
[1641776772771,9e-05,141.18,141.16,5.77]
[1641776772975,44.1056,141.25,141.16,5.77]
[1641776774574,44.1056,141.25,141.18,27.66479]
[1641776774774,41.44968056,141.28,141.18,27.66479]
[1641776775179,41.44968056,141.28,141.18,29.43479]
[1641776775578,4.0,141.27,141.18,29.43479]
[1641776776277,4.0,141.24,141.18,29.43479]
[1641776776477,4.0,141.27,141.18,27.66479]
[1641776776777,27.66479,141.25,141.18,27.66479]
[1641776778779,0.98198873,141.24,141.18,27.66479]
[1641776780581,0.98198873,141.24,141.19,4.0]
[1641776780780,0.98198873,141.24,141.2,1.77]
[1641776782982,27.66479,141.25,141.2,1.77]
[1641776783182,0.98230078,141.23,141.2,1.77]
[1641776786689,0.98230078,141.23,141.21,4.02126002]
[1641776787189,0.98198347,141.22,141.21,4.02126002]
[1641776788891,0.98198347,141.22,141.21,31.68605002]
[1641776789493,0.98198347,141.22,141.15,19.54939196]
[1641776789691,0.98198347,141.22,141.15,7.08064859]
[1641776789992,4.98198347,141.22,141.15,7.08064859]
[1641776790191,0.98198347,141.22,141.15,7.08064859]
[1641776790392,4.98198347,141.22,141.12,45.2917]
[1641776790592,0.98198347,141.22,141.12,45.2917]
[1641776790794,0.98198347,141.22,141.13,29.43479]
[1641776791401,73.12869,141.23,141.14,5.66795741]
[1641776791693,0.98290622,141.22,141.15,25.77]
[1641776791894,0.98290622,141.22,141.15,21.77]
[1641776792093,0.98290622,141.22,141.15,25.77]
[1641776792393,0.98290622,141.22,141.16,5.66715326]
[1641776792593,0.98290622,141.22,141.17,1.77]
[1641776792796,0.98290622,141.22,141.18,27.66479]
[1641776795496,0.98290622,141.22,141.17,1.77]
[1641776795696,46.60898813,141.25,141.15,1.77]
[1641776795897,1.78751384,141.21,141.15,1.77]
[1641776796296,4.30483872,141.21,141.15,1.77]
[1641776796897,4.30483872,141.21,141.16,27.66479]
[1641776797499,1.78751384,141.21,141.16,27.66479]
[1641776798198,2.51877567,141.2,141.16,27.66479]
[1641776799699,4.70710976,141.2,141.16,27.66479]
[1641776799899,4.70710976,141.2,141.17,1.77]
[1641776800302,67.24740287,141.25,141.17,1.77]
[1641776800502,7.41201057,141.26,141.24,24.0]
[1641776800702,41.29997883,141.3,141.25,5.768]
[1641776801002,105.7194016,141.34,141.29,75.32958]
[1641776801003,99.03921597,141.34,141.29,75.32958]
[1641776801202,99.03921597,141.34,141.3,5.768]
[1641776801403,99.03921597,141.34,141.3,1.768]
[1641776801604,4.0,141.37,141.3,1.768]
[1641776801803,46.2414,141.42,141.29,62.40246609]
[1641776801804,45.7698,141.39,141.29,62.40246609]
[1641776802003,5.65736893,141.41,141.29,55.32958]
[1641776802203,9.65852675,141.38,141.29,55.32958]
[1641776802604,4.0,141.37,141.29,55.32958]
[1641776802804,4.0,141.32,141.29,55.32958]
[1641776803205,4.0,141.34,141.29,55.32958]
[1641776803406,27.66479,141.36,141.29,55.32958]
[1641776803708,9.65852675,141.38,141.29,55.32958]
[1641776805010,31.66479,141.39,141.29,55.32958]
[1641776806312,31.66479,141.39,141.3,4.01806528]
[1641776807611,4.0,141.37,141.3,4.01806528]
[1641776808012,4.0,141.36,141.3,4.01806528]
[1641776809213,4.0,141.35,141.3,4.01806528]
[1641776810115,31.66479,141.39,141.29,55.32958]
[1641776810414,4.0,141.37,141.31,4.01778136]
[1641776810713,4.0,141.38,141.31,4.01778136]
[1641776811114,4.0,141.37,141.31,4.01778136]
[1641776811315,4.0,141.38,141.31,4.01778136]
[1641776811517,27.66479,141.39,141.31,4.01778136]
[1641776813218,70.09249,141.41,141.32,27.66479]
[1641776813416,74.09249,141.41,141.32,27.66479]
[1641776814018,4.0,141.4,141.32,27.66479]
[1641776814217,4.0,141.38,141.32,27.66479]
[1641776814418,74.09249,141.41,141.32,27.66479]
[1641776814618,4.0,141.4,141.32,27.66479]
[1641776815219,4.0,141.37,141.32,27.66479]
[1641776815519,9.65816639,141.39,141.32,27.66479]
[1641776815719,4.0,141.38,141.32,27.66479]
[1641776815921,5.65816639,141.39,141.32,27.66479]
[1641776816822,4.0,141.4,141.32,27.66479]
[1641776818822,1.19625949,141.39,141.33,4.01800851]
[1641776820426,5.19625949,141.39,141.33,4.01800851]
[1641776820627,1.19625949,141.39,141.33,4.01800851]
[1641776821228,5.19625949,141.39,141.33,4.01800851]
[1641776821429,1.19625949,141.39,141.33,4.01800851]
[1641776821630,5.19625949,141.39,141.33,4.01800851]
[1641776821831,4.0,141.39,141.32,27.66479]
[1641776822429,5.19621851,141.38,141.29,27.66479]
[1641776822629,10.85487622,141.38,141.29,27.66479]
[1641776822829,6.85487622,141.38,141.29,27.66479]
[1641776823029,4.0,141.34,141.29,27.66479]
[1641776823230,4.0,141.33,141.26,7.07488769]
[1641776824031,4.0,141.33,141.24,27.66479]
[1641776824232,4.0,141.3,141.22,27.66479]
[1641776824435,4.0,141.32,141.22,27.66479]